fUSD/lending_fUSD_20250215
["ID","MTS","AMOUNT","RATE_DAILY","PERIOD"]
[353129345,1739589037479,-188.56213999,0.00011038,2]
[353129346,1739589037489,-505.2955233,0.00011038,2]
[353129347,1739589037498,-500.0,0.00011038,2]
[353129348,1739589037508,-500.0,0.00011038,2]
[353129349,1739589037517,-504.45186534,0.00011038,2]
[353129350,1739589037527,-501.72789385,0.00011038,2]
[353129351,1739589037537,-575.07,0.00011038,2]
[353129352,1739589037547,-2433.21,0.00011038,2]
[353129353,1739589037557,-504.43310396,0.00011038,2]
[353129355,1739589037566,-506.31233154,0.00011038,2]
[353129356,1739589037575,-502.88272678,0.00011038,2]
[353129357,1739589037584,-500.0,0.00011038,2]
[353129358,1739589037594,-1353.55,0.00011038,2]
[353129359,1739589037604,-720.37,0.00011038,2]
[353129360,1739589037614,-500.0,0.00011038,2]
[353129361,1739589037623,-500.0,0.00011038,2]
[353129362,1739589037632,-511.95879084,0.00011038,2]
[353129363,1739589037641,-1137.82,0.00011038,2]
[353129364,1739589037652,-500.0,0.00011038,2]
[353129365,1739589037661,-500.0,0.00011038,2]
[353129366,1739589037671,-500.0,0.00011038,2]
[353129367,1739589037681,-944.32,0.00011038,2]
[353129368,1739589037690,-500.0,0.00011038,2]
[353129369,1739589037700,-1719.77,0.00011038,2]
[353129370,1739589037709,-505.54373705,0.00011038,2]
[353129371,1739589037720,-500.0,0.00011038,2]
[353129372,1739589037730,-500.65092857,0.00011038,2]
[353129374,1739589037740,-500.0,0.00011038,2]
[353129375,1739589037750,-515.62161457,0.00011038,2]
[353129376,1739589037760,-505.40632666,0.00011038,2]
[353129377,1739589037770,-1287.65,0.00011038,2]
[353129378,1739589037781,-500.0,0.00011038,2]
[353129379,1739589037790,-501.1867461,0.00011038,2]
[353129380,1739589037801,-1287.3,0.00011038,2]
[353129381,1739589037811,-500.0,0.00011038,2]
[353129382,1739589037820,-500.0,0.00011038,2]
[353129383,1739589037830,-500.0,0.00011038,2]
[353129384,1739589037839,-641.26,0.00011038,2]
[353129385,1739589037849,-813.35,0.00011038,2]
[353129386,1739589037859,-500.0,0.00011038,2]
[353129387,1739589037870,-500.0,0.00011038,2]
[353129388,1739589037879,-500.0,0.00011038,2]
[353129389,1739589037892,-500.0,0.00011038,2]
[353129390,1739589037901,-500.0,0.00011038,2]
[353129391,1739589037911,-500.0,0.00011038,2]
[353129392,1739589037920,-507.17711052,0.00011038,2]
[353129393,1739589037931,-1283.43,0.00011038,2]
[353129394,1739589037941,-3094.09,0.00011038,2]
[353129395,1739589037953,-500.0,0.00011038,2]
[353129396,1739589037963,-500.0,0.00011038,2]
[353129397,1739589037973,-500.0,0.00011038,2]
[353129398,1739589037983,-500.0,0.00011039,2]
[353129399,1739589037993,-500.0,0.00011039,2]
[353129400,1739589038004,-562.06,0.00011039,2]
[353129401,1739589038014,-500.0,0.00011039,2]
[353129402,1739589038024,-500.0,0.00011039,2]
[353129403,1739589038033,-500.0,0.00011039,2]
[353129404,1739589038044,-684.53,0.00011039,2]
[353129405,1739589038054,-500.0,0.00011039,2]
[353129406,1739589038064,-849.92,0.00011039,2]
[353129407,1739589038077,-719.86,0.00011039,2]
[353129408,1739589038086,-732.89,0.00011039,2]
[353129409,1739589038096,-519.32,0.00011039,2]
[353129410,1739589038107,-563.59,0.00011039,2]
[353129411,1739589038118,-723.12,0.00011039,2]
[353129412,1739589038128,-985.61,0.00011039,2]
[353129413,1739589038139,-710.27,0.00011039,2]
[353129414,1739589038149,-833.86,0.00011039,2]
[353129415,1739589038159,-833.77,0.00011039,2]
[353129416,1739589038169,-613.03,0.00011039,2]
[353129417,1739589038190,-566.82,0.00011039,2]
[353129418,1739589038203,-500.0,0.00011039,2]
[353129419,1739589038214,-500.0,0.00011039,2]
[353129420,1739589038224,-500.0,0.00011039,2]
[353129422,1739589038234,-500.0,0.00011039,2]
[353129424,1739589038244,-500.0,0.00011039,2]
[353129426,1739589038255,-500.0,0.00011039,2]
[353129428,1739589038265,-500.0,0.00011039,2]
[353129430,1739589038275,-500.0,0.00011039,2]
[353129432,1739589038285,-567.72058177,0.0001104,2]
[353129434,1739589038295,-500.0,0.0001104,2]
[353129436,1739589038305,-653.72,0.0001104,2]
[353129438,1739589038316,-1974.54,0.0001104,2]
[353129441,1739589038326,-986.68,0.0001104,2]
[353129443,1739589038336,-697.07,0.0001104,2]
[353129446,1739589038345,-500.0,0.0001104,2]
[353129448,1739589038356,-1457.79,0.0001104,2]
[353129449,1739589038366,-1129.62,0.0001104,2]
[353129451,1739589038376,-500.0,0.0001104,2]
[353129453,1739589038386,-1180.97,0.0001104,2]
[353129456,1739589038397,-1786.28,0.0001104,2]
[353129457,1739589038407,-500.0,0.0001104,2]
[353129458,1739589038419,-959.45,0.0001104,2]
[353129459,1739589038430,-509.17,0.0001104,2]
[353129460,1739589038440,-800.38,0.0001104,2]
[353129461,1739589038451,-1155.07,0.0001104,2]
[353129462,1739589038461,-500.0,0.0001104,2]
[353129463,1739589038471,-1607.12,0.0001104,2]
[353129464,1739589038481,-1138.53,0.0001104,2]
[353129465,1739589038491,-1136.27,0.0001104,2]
[353129466,1739589038507,-1209.66,0.0001104,2]
[353129467,1739589038517,-1590.11,0.0001104,2]
[353129468,1739589038836,-1636.75,0.0001104,2]
[353129469,1739589038847,-4081.17,0.0001104,2]
[353129470,1739589038858,-1034.19,0.0001104,2]
[353129471,1739589038868,-1042.51,0.0001104,2]
[353129472,1739589038878,-500.0,0.00011041,2]
[353129473,1739589038890,-500.0,0.00011041,2]
[353129474,1739589038902,-500.0,0.00011041,2]
[353129475,1739589038911,-500.0,0.00011041,2]
[353129476,1739589038921,-500.0,0.00011041,2]
[353129477,1739589038934,-500.0,0.00011041,2]
[353129478,1739589038944,-500.0,0.00011041,2]
[353129479,1739589038954,-500.0,0.00011041,2]
[353129480,1739589038965,-500.0,0.00011041,2]
[353129481,1739589038975,-500.0,0.00011041,2]
[353129482,1739589038985,-500.0,0.00011041,2]
[353129483,1739589038994,-500.0,0.00011041,2]
[353129484,1739589039004,-500.0,0.00011041,2]
[353129485,1739589039014,-500.0,0.00011041,2]
[353129486,1739589039023,-172.34087917,0.00011041,2]
[353129487,1739589039033,-500.0,0.00011041,2]
[353129488,1739589039043,-500.0,0.00011041,2]
[353129489,1739589039053,-500.0,0.00011041,2]
[353129490,1739589039064,-507.50607581,0.00011041,2]
[353129491,1739589039073,-500.0,0.00011041,2]
[353129492,1739589039083,-500.0,0.00011041,2]
[353129493,1739589039093,-500.0,0.00011041,2]
[353129494,1739589039103,-500.0,0.00011041,2]
[353129495,1739589039117,-500.0,0.00011041,2]
[353129496,1739589039128,-500.0,0.00011041,2]
[353129497,1739589039138,-500.0,0.00011041,2]
[353129498,1739589039150,-611.80108488,0.00011041,2]
[353129499,1739589039160,-500.0,0.00011041,2]
[353129500,1739589039170,-688.19,0.00011041,2]
[353129501,1739589039180,-500.0,0.00011041,2]
[353129502,1739589039191,-594.51,0.00011041,2]
[353129503,1739589039201,-500.0,0.00011041,2]
[353129504,1739589039211,-500.0,0.00011041,2]
[353129505,1739589039221,-500.0,0.00011041,2]
[353129506,1739589039231,-500.0,0.00011041,2]
[353129507,1739589039240,-915.12,0.00011041,2]
[353129508,1739589039250,-500.0,0.00011041,2]
[353129509,1739589039260,-500.0,0.00011041,2]
[353129510,1739589039270,-789.08,0.00011041,2]
[353129511,1739589039280,-500.0,0.00011041,2]
[353129512,1739589039292,-500.0,0.00011041,2]
[353129513,1739589039301,-500.0,0.00011041,2]
[353129514,1739589039311,-500.0,0.00011041,2]
[353129515,1739589039321,-500.0,0.00011041,2]
[353129516,1739589039331,-1288.83,0.00011041,2]
[353129517,1739589039341,-500.0,0.00011041,2]
[353129518,1739589039350,-500.0,0.00011041,2]
[353129519,1739589039360,-500.0,0.00011041,2]
[353129520,1739589039369,-500.0,0.00011041,2]
[353129521,1739589039379,-500.0,0.00011041,2]
[353129522,1739589039389,-500.0,0.00011041,2]
[353129523,1739589039399,-500.0,0.00011041,2]
[353129524,1739589039409,-742.92,0.00011041,2]
[353129525,1739589039419,-500.0,0.00011041,2]
[353129526,1739589039428,-607.74822104,0.00011041,2]
[353129527,1739589039439,-500.0,0.00011041,2]
[353129528,1739589039448,-500.0,0.00011041,2]
[353129529,1739589039458,-502.75,0.00011041,2]
[353129530,1739589039468,-500.0,0.00011041,2]
[353129531,1739589039477,-500.0,0.00011041,2]
[353129532,1739589039488,-500.0,0.00011041,2]
[353129533,1739589039497,-500.0,0.00011041,2]
[353129534,1739589039507,-500.0,0.00011041,2]
[353129535,1739589039517,-500.0,0.00011041,2]
[353129536,1739589039527,-500.0,0.00011041,2]
[353129537,1739589039537,-500.0,0.00011041,2]
[353129538,1739589039547,-500.0,0.00011041,2]
[353129539,1739589039558,-500.0,0.00011041,2]
[353129540,1739589039568,-721.58,0.00011041,2]
[353129541,1739589039577,-500.0,0.00011041,2]
[353129542,1739589039587,-500.0,0.00011041,2]
[353129544,1739589039597,-500.0,0.00011041,2]
[353129546,1739589039607,-500.0,0.00011041,2]
[353129548,1739589039617,-609.7,0.00011041,2]
[353129550,1739589039632,-588.73,0.00011041,2]
[353129551,1739589039641,-500.0,0.00011041,2]
[353129552,1739589039651,-690.44,0.00011041,2]
[353129553,1739589039662,-548.82,0.00011041,2]
[353129554,1739589039672,-500.0,0.00011041,2]
[353129555,1739589039681,-500.0,0.00011041,2]
[353129556,1739589039691,-500.0,0.00011041,2]
[353129558,1739589039700,-500.0,0.00011041,2]
[353129559,1739589039710,-500.0,0.00011041,2]
[353129560,1739589039721,-500.0,0.00011041,2]
[353129561,1739589039731,-500.0,0.00011041,2]
[353129562,1739589039741,-500.0,0.00011041,2]
[353129563,1739589039753,-500.0,0.00011041,2]
[353129564,1739589039764,-500.0,0.00011041,2]
[353129565,1739589039775,-500.0,0.00011041,2]
[353129566,1739589039787,-516.94719784,0.00011041,2]
[353129567,1739589039796,-500.0,0.00011041,2]
[353129568,1739589039808,-500.0,0.00011041,2]
[353129569,1739589039819,-500.0,0.00011041,2]
[353129570,1739589039830,-500.0,0.00011041,2]
[353129571,1739589039840,-500.0,0.00011041,2]
[353129572,1739589039850,-500.0,0.00011041,2]
[353129573,1739589039860,-510.33,0.00011041,2]
[353129574,1739589039871,-852.35560078,0.00011041,2]
[353129575,1739589040212,-91.32439922,0.00011041,2]
[353129576,1739589040222,-265.9089373,0.00011041,2]
[353129588,1739589040984,-500.0,0.00010999,2]
[353129589,1739589040995,-1202.97,0.0001104,2]
[353129590,1739589041007,-234.0910627,0.00011041,2]
[353129591,1739589041017,-500.0,0.00011041,2]
[353129592,1739589041027,-500.0,0.00011041,2]
[353129593,1739589041038,-558.37,0.00011041,2]
[353129594,1739589041048,-1135.2,0.00011041,2]
[353129595,1739589041058,-500.0,0.00011041,2]
[353129596,1739589041068,-666.06,0.00011041,2]
[353129597,1739589041078,-717.34,0.00011041,2]
[353129598,1739589041089,-1412.44,0.00011041,2]
[353129599,1739589041099,-1881.77,0.00011041,2]
[353129600,1739589041110,-939.99022057,0.00011041,2]
[353129601,1739589041255,-258.66977943,0.00011041,2]
[353129602,1739589041265,-1240.08,0.00011041,2]
[353129603,1739589041274,-500.0,0.00011041,2]
[353129604,1739589041284,-1713.83,0.00011041,2]
[353129605,1739589041299,-500.0,0.00011041,2]
[353129606,1739589041309,-850.26,0.00011041,2]
[353129607,1739589041319,-500.0,0.00011041,2]
[353129608,1739589041330,-1761.91,0.00011041,2]
[353129609,1739589041340,-500.0,0.00011041,2]
[353129610,1739589041350,-500.0,0.00011041,2]
[353129611,1739589041360,-500.0,0.00011041,2]
[353129612,1739589041371,-622.96,0.00011041,2]
[353129613,1739589041381,-770.38,0.00011041,2]
[353129614,1739589041392,-640.1,0.00011041,2]
[353129615,1739589041401,-768.9,0.00011041,2]
[353129616,1739589041411,-789.64,0.00011041,2]
[353129617,1739589041420,-500.0,0.00011041,2]
[353129618,1739589041431,-500.0,0.00011041,2]
[353129619,1739589041443,-500.0,0.00011041,2]
[353129620,1739589041454,-506.42621249,0.00011041,2]
[353129621,1739589041465,-500.0,0.00011041,2]
[353129622,1739589041476,-500.0,0.00011041,2]
[353129623,1739589041486,-502.58869398,0.00011041,2]
[353129624,1739589041497,-500.0,0.00011041,2]
[353129625,1739589041508,-737.67,0.00011081,2]
[353129626,1739589041518,-555.152518,0.00011081,2]
[353129627,1739589041527,-500.0,0.00011081,2]
[353129628,1739589041538,-791.37,0.00011081,2]
[353129629,1739589041547,-431.77492767,0.00011081,2]
[353129630,1739589041560,-190.50507233,0.00011081,2]
[353129631,1739589041571,-563.075632,0.00011081,2]
[353129632,1739589041581,-1137.52,0.00011081,2]
[353129633,1739589041591,-1050.23,0.00011081,2]
[353129634,1739589041601,-500.0,0.00011081,2]
[353129635,1739589041612,-500.0,0.00011081,2]
[353129636,1739589041622,-835.69,0.00011081,2]
[353129637,1739589041632,-994.93,0.00011081,2]
[353129638,1739589041641,-863.72,0.00011081,2]
[353129639,1739589041651,-635.09616767,0.00011081,2]
[353129640,1739589041663,-169.92383233,0.00011081,2]
[353129641,1739589041672,-469.07621943,0.00011081,2]
[353129642,1739589041692,-664.38378057,0.00011081,2]
[353129643,1739589041704,-232.03905399,0.00011081,2]
[353129644,1739589041715,-2013.96094601,0.00011081,2]
[353129645,1739589041725,-806.04,0.00011081,2]
[353129646,1739589041734,-1087.42,0.00011081,2]
[353129647,1739589041743,-1798.43,0.00011081,2]
[353129648,1739589041753,-1565.69,0.00011081,2]
[353129649,1739589041763,-257.65888857,0.00011081,2]
[353129650,1739589041774,-1333.97111143,0.00011081,2]
[353129651,1739589041783,-1452.22,0.00011081,2]
[353129652,1739589041792,-2973.81632321,0.00011081,2]
[353129653,1739589041807,-3190.00367679,0.00011081,2]
[353129654,1739589041816,-4814.25,0.00011081,2]
[353129655,1739589041825,-500.0,0.00011081,2]
[353129656,1739589041836,-1512.76,0.00011081,2]
[353129657,1739589041847,-2020.61,0.00011081,2]
[353129658,1739589041858,-795.18,0.00011081,2]
[353129659,1739589041869,-1432.04,0.00011081,2]
[353129660,1739589041879,-500.0,0.00011081,2]
[353129661,1739589041890,-313.04480741,0.00011099,2]
[353129662,1739589041904,-313.04480741,0.00011099,2]
[353129663,1739589041914,-326.6628692,0.00011099,2]
[353129664,1739589041924,-326.66286915,0.00011099,2]
[353129665,1739589041935,-326.66286915,0.00011099,2]
[353129666,1739589041944,-775.59,0.000111,2]
[353129667,1739589041954,-563.47,0.000111,2]
[353129668,1739589041963,-105.01810089,0.00011102,2]
[353129669,1739589041975,-208.02670652,0.00011102,2]
[353129670,1739589041984,-255.14473063,0.00011108,2]
[353129671,1739589041994,-300.0,0.00011117,2]
[353129672,1739589042004,-263.52889134,0.00011117,2]
[353129673,1739589042014,-3.29967151,0.00011118,2]
[353129674,1739589042037,-147.70032849,0.00011118,2]
[353129675,1739589042047,-651.58908075,0.00011118,3]
[353129676,1739589042058,-237.72342777,0.00011118,3]
[353129677,1739589042068,-356.80682192,0.00011118,3]
[353129678,1739589042080,-610.22697178,0.00011118,3]
[353129679,1739589042092,-2052.40387248,0.00011118,3]
[353129680,1739589042104,-582.27999921,0.00011118,3]
[353129681,1739589042116,-450.61731138,0.00011118,3]
[353129682,1739589042128,-8661.20091581,0.00011118,3]
[353129683,1739589042140,-1463.58,0.00011118,3]
[353129684,1739589042153,-886.16936274,0.00011118,3]
[353129685,1739589042165,-1704.75408117,0.00011118,3]
[353129686,1739589042176,-273.5625108,0.00011118,3]
[353129688,1739589042188,-75202.59961879,0.00011118,3]
[353129689,1739589042224,-1911.57,0.00011118,3]
[353129690,1739589042489,-4740.39960223,0.00011118,3]
[353129691,1739589042513,-1231.484989,0.00011118,3]
[353129692,1739589042527,-3890.28626395,0.00011118,3]
[353129693,1739589042539,-1053.91278966,0.00011118,3]
[353129694,1739589042551,-535.02444576,0.00011118,3]
[353129695,1739589042564,-1863.64567434,0.00011118,3]
[353129696,1739589042577,-5645.59999995,0.00011118,3]
[353129697,1739589042598,-2256.50655973,0.00011118,3]
[353129698,1739589042611,-2500.27239773,0.00011118,3]
[353129700,1739589042623,-121340.66095968,0.00011118,3]
[353129702,1739589042635,-30370.32706944,0.00011118,3]
[353129703,1739589042647,-574.72339879,0.00011118,3]
[353129704,1739589042658,-1399.79399091,0.00011118,3]
[353129705,1739589042672,-7053.87484148,0.00011118,3]
[353129707,1739589042683,-4702.1225,0.00011118,3]
[353129709,1739589042695,-1728.77262585,0.00011118,3]
[353129711,1739589042707,-1925.36,0.00011118,3]
[353129713,1739589042719,-2856.93372,0.00011118,3]
[353129715,1739589043276,-254.39513532,0.00010719,2]
[353129716,1739589043366,-854.60486468,0.00010719,2]
[353129717,1739589043377,-490.2,0.00011038,2]
[353129718,1739589043387,-452.74010106,0.00011118,3]
[353129719,1739589043399,-284.74638608,0.00011118,3]
[353129724,1739589045748,-1384.7,0.00010999,2]
[353129725,1739589045759,-500.0,0.00011037,2]
[353129728,1739589045770,-396.38962,0.00011038,2]
[353129729,1739589045780,-1610.57,0.0001104,2]
[353129730,1739589045791,-325187.16960269,0.00011118,3]
[353129731,1739589045810,-650490.74659247,0.00011118,3]
[353129732,1739589045822,-3168.93461459,0.00011118,3]
[353129733,1739589045908,-1168.084298,0.00011081,2]
[353129734,1739589046069,-608.83533071,0.00010999,2]
[353129738,1739589123932,299.9,0.0002,120]
[353129739,1739589291491,357.0,0.0002,120]
[353129741,1739589345096,608.4,8e-05,2]
[353129765,1739590138425,814.44,8.219e-05,2]
[353129777,1739590231948,-178480.64771922,8.963e-05,2]
[353129779,1739590231960,-87073.4886545,8.963e-05,2]
[353129781,1739590231970,-74221.93926821,8.973e-05,2]
[353129783,1739590231982,-1312.86736666,8.973e-05,2]
[353129784,1739590232008,-1112.22,8.973e-05,2]
[353129785,1739590232063,-8975.73176513,8.973e-05,2]
[353129786,1739590232072,-5000.0,8.973e-05,2]
[353129787,1739590232082,-4755.12940408,9e-05,2]
[353129788,1739590232091,-1000.0,9.392e-05,2]
[353129789,1739590232101,-250.0,9.466e-05,2]
[353129798,1739590232379,-1000.0,9.566e-05,2]
[353129799,1739590232389,-1000.0,9.594e-05,2]
[353129800,1739590232399,-176.28048689,9.619e-05,2]
[353129801,1739590232409,-165.23,9.849e-05,2]
[353129802,1739590232418,-150.0,9.87e-05,2]
[353129803,1739590232428,-150.0,9.9e-05,2]
[353129804,1739590232437,-312.28449115,9.958e-05,2]
[353129805,1739590232446,-29497.35058605,9.98e-05,2]
[353129806,1739590232459,-1771.80055567,9.98e-05,2]
[353129808,1739590232469,-1484.54471875,9.98e-05,2]
[353129810,1739590232480,-1500.0,9.98e-05,2]
[353129831,1739590232602,-2789.63431609,9.98e-05,2]
[353129834,1739590232611,-56816.70765006,0.0001,2]
[353129837,1739590232620,-10631.13680518,0.0001,2]
[353129839,1739590232630,-1000.0,0.00010058,2]
[353129841,1739590232639,-153.03,0.00010137,2]
[353129843,1739590232648,-862.58,0.00010192,2]
[353129845,1739590232657,-439.94,0.00010192,2]
[353129847,1739590232666,-884.53,0.00010441,2]
[353129849,1739590232675,-814.44,0.00010452,2]
[353129851,1739590232684,-877.41,0.00010466,2]
[353129853,1739590232694,-170.28209592,0.000109,2]
[353129855,1739590232703,-312.28449106,0.0001093,2]
[353129857,1739590232712,-500.0,0.00010958,2]
[353129859,1739590232721,-960.55,0.00010958,2]
[353129861,1739590232730,-968.66,0.00010958,2]
[353129862,1739590232739,-640.96,0.00010958,2]
[353129864,1739590232748,-787.0,0.00010958,2]
[353129866,1739590232757,-500.0,0.00010958,2]
[353129867,1739590232767,-985.89,0.00010958,2]
[353129868,1739590232775,-755.88,0.00010958,2]
[353129869,1739590232785,-770.98,0.00010958,2]
[353129870,1739590232795,-937.49,0.00010958,2]
[353129871,1739590232804,-1002.94,0.00010958,2]
[353129872,1739590232814,-513.7,0.00010958,2]
[353129873,1739590232823,-889.88,0.00010958,2]
[353129874,1739590232832,-500.0,0.00010958,2]
[353129875,1739590232842,-500.0,0.00010958,2]
[353129876,1739590232851,-1272.83,0.00010958,2]
[353129877,1739590232860,-500.0,0.00010958,2]
[353129878,1739590232869,-500.0,0.00010958,2]
[353129879,1739590232878,-773.24,0.00010958,2]
[353129880,1739590232888,-787.8,0.00010958,2]
[353129881,1739590232897,-766.4,0.00010958,2]
[353129882,1739590232906,-500.0,0.00010958,2]
[353129883,1739590232915,-500.0,0.00010958,2]
[353129884,1739590232924,-1393.82,0.00010958,2]
[353129885,1739590232934,-500.0,0.00010958,2]
[353129886,1739590232943,-500.0,0.00010958,2]
[353129887,1739590232952,-500.0,0.00010958,2]
[353129888,1739590232961,-1519.99,0.00010958,2]
[353129889,1739590232971,-504.64,0.00010958,2]
[353129890,1739590232980,-216.88515325,0.00010958,2]
[353129891,1739590232990,-142861.20518677,0.00010958,2]
[353129892,1739590232999,-494.09,0.00010979,2]
[353129893,1739590233008,-505.22,0.00010999,2]
[353129894,1739590233018,-424.315,0.00011009,2]
[353129895,1739590233027,-3915.0,0.00011009,2]
[353129896,1739590233037,-150.0,0.00011009,2]
[353129897,1739590233047,-181.46955567,0.00011035,2]
[353129898,1739590233056,-155.87146,0.00011036,2]
[353129899,1739590233065,-508.889808,0.00011036,2]
[353129900,1739590233075,-601.437824,0.00011036,2]
[353129901,1739590233084,-163.665045,0.00011036,2]
[353129902,1739590233093,-500.0,0.00011036,2]
[353129903,1739590233103,-693.09,0.00011036,2]
[353129904,1739590233112,-500.0,0.00011036,2]
[353129905,1739590233121,-154.92891862,0.00011036,2]
[353129906,1739590233130,-500.0,0.00011036,2]
[353129907,1739590233140,-503.41,0.00011036,2]
[353129908,1739590233150,-500.76177616,0.00011036,2]
[353129909,1739590233159,-500.0,0.00011036,2]
[353129910,1739590233168,-317.77692513,0.00011036,2]
[353129911,1739590233177,-500.0,0.00011036,2]
[353129912,1739590233187,-500.0,0.00011036,2]
[353129913,1739590233196,-500.0,0.00011036,2]
[353129914,1739590233205,-556.2,0.00011036,2]
[353129915,1739590233215,-500.0,0.00011036,2]
[353129916,1739590233224,-500.0,0.00011036,2]
[353129917,1739590233233,-538.7,0.00011036,2]
[353129918,1739590233243,-598.69,0.00011036,2]
[353129919,1739590233252,-517.85,0.00011036,2]
[353129920,1739590233262,-500.0,0.00011036,2]
[353129921,1739590233274,-500.0,0.00011036,2]
[353129922,1739590233283,-500.0,0.00011036,2]
[353129923,1739590233293,-523.07,0.00011036,2]
[353129924,1739590233303,-500.0,0.00011036,2]
[353129925,1739590233312,-610.51,0.00011036,2]
[353129926,1739590233322,-500.0,0.00011036,2]
[353129927,1739590233332,-500.0,0.00011036,2]
[353129928,1739590233343,-500.0,0.00011036,2]
[353129929,1739590233354,-543.97,0.00011036,2]
[353129930,1739590233365,-500.0,0.00011036,2]
[353129931,1739590233374,-420.17808046,0.00011036,2]
[353129932,1739590233384,-500.0,0.00011036,2]
[353129933,1739590233394,-500.0,0.00011036,2]
[353129934,1739590233404,-500.0,0.00011036,2]
[353129935,1739590233413,-541.5,0.00011036,2]
[353129936,1739590233423,-500.0,0.00011036,2]
[353129937,1739590233432,-960.93,0.00011036,2]
[353129938,1739590233442,-500.0,0.00011036,2]
[353129939,1739590233451,-500.0,0.00011036,2]
[353129940,1739590233461,-500.0,0.00011036,2]
[353129941,1739590233471,-500.0,0.00011036,2]
[353129942,1739590233480,-500.0,0.00011036,2]
[353129943,1739590233490,-608.15,0.00011036,2]
[353129944,1739590233499,-500.0,0.00011036,2]
[353129945,1739590233509,-500.0,0.00011036,2]
[353129946,1739590233519,-676.47,0.00011036,2]
[353129947,1739590233530,-500.0,0.00011036,2]
[353129948,1739590233540,-557.48,0.00011036,2]
[353129949,1739590233549,-500.0,0.00011036,2]
[353129950,1739590233559,-500.0,0.00011036,2]
[353129951,1739590233569,-662.68,0.00011036,2]
[353129952,1739590233578,-500.0,0.00011036,2]
[353129953,1739590233588,-501.0924812,0.00011036,2]
[353129954,1739590233599,-500.0,0.00011036,2]
[353129955,1739590233608,-500.0,0.00011036,2]
[353129956,1739590233619,-643.42,0.00011036,2]
[353129957,1739590233628,-500.0,0.00011036,2]
[353129958,1739590233638,-660.12,0.00011036,2]
[353129959,1739590233647,-500.0,0.00011036,2]
[353129960,1739590233656,-500.0,0.00011036,2]
[353129961,1739590233667,-500.12285687,0.00011036,2]
[353129962,1739590233676,-500.0,0.00011036,2]
[353129963,1739590233685,-500.0,0.00011036,2]
[353129964,1739590233695,-1082.61,0.00011036,2]
[353129965,1739590233704,-500.0,0.00011036,2]
[353129966,1739590233714,-321.57917348,0.00011036,2]
[353129967,1739590233724,-767.14,0.00011036,2]
[353129968,1739590233733,-503.54,0.00011036,2]
[353129969,1739590233743,-500.0,0.00011036,2]
[353129970,1739590233753,-500.0,0.00011036,2]
[353129971,1739590233763,-503.8080558,0.00011036,2]
[353129972,1739590233773,-787.59,0.00011036,2]
[353129973,1739590233782,-500.0,0.00011036,2]
[353129974,1739590233792,-500.0,0.00011036,2]
[353129975,1739590233802,-500.0,0.00011036,2]
[353129976,1739590233811,-689.16,0.00011036,2]
[353129977,1739590233821,-500.0,0.00011036,2]
[353129978,1739590233831,-964.32,0.00011036,2]
[353129979,1739590233841,-153.07188363,0.00011036,2]
[353129980,1739590233850,-500.0,0.00011036,2]
[353129981,1739590233860,-500.0,0.00011036,2]
[353129982,1739590233870,-858.96,0.00011036,2]
[353129983,1739590233880,-500.0,0.00011036,2]
[353129984,1739590233890,-500.0,0.00011036,2]